bitfinex-derivatives/quotes_SOLF0:USTF0_20250904
["timestamp","ask_amount","ask_price","bid_price","bid_amount"]
[1757011709193,3.05054254,203.07,203.0,7.41]
[1757011709690,3.88,203.09,202.99,7.41]
[1757011709691,1.95710098,203.05,202.99,7.41]
[1757011710892,1.95710098,203.05,202.99,1.95710098]
[1757011711287,3.88,203.09,203.0,7.41]
[1757011711488,1.95710098,203.06,203.0,7.41]
[1757011712693,1.95710098,203.04,202.98,7.41]
[1757011714095,3.88,203.06,202.96,1.95710098]
[1757011714293,1.95710098,203.02,202.97,7.41]
[1757011714493,1.95710098,203.02,202.96,1.95710098]
[1757011714696,1.95710098,203.02,202.97,7.41]
[1757011714991,3.88,203.06,202.97,7.41]
[1757011715196,3.88,203.06,202.99,7.41]
[1757011715388,1.95710098,203.05,202.99,7.41]
[1757011716194,3.88,203.06,202.97,7.41]
[1757011716396,1.95710098,203.03,202.97,7.41]
[1757011718096,68.9398,203.04,202.98,1.95710098]
[1757011718286,68.9398,203.04,202.99,7.41]
[1757011718287,70.89690098,203.04,202.99,7.41]
[1757011718488,70.89690098,203.04,202.98,1.95710098]
[1757011718691,70.89690098,203.04,202.99,7.41]
[1757011718893,70.89690098,203.04,202.98,1.95710098]
[1757011719090,4.4325,203.01,203.0,9.36710098]
[1757011719486,139.80630098,203.08,203.0,9.36710098]
[1757011719684,4.4319,203.03,203.02,1.95710098]
[1757011719890,4.4319,203.03,203.02,9.36710098]
[1757011721497,4.4319,203.03,203.02,7.41]
[1757011722997,4.4314,203.06,203.02,1.95710098]
[1757011723297,4.4314,203.06,203.05,7.41]
[1757011726201,4.4317,203.04,203.03,9.36710098]
[1757011726401,3.89,203.07,203.01,1.95710098]
[1757011726699,70.88410098,203.08,203.01,7.41]
[1757011726700,3.89,203.05,203.01,7.41]
[1757011726995,4.4322,203.02,203.01,7.41]
[1757011729394,4.4326,203.0,202.99,1.95710098]
[1757011729597,4.4326,203.0,202.99,9.51710098]
[1757011732999,4.4326,203.0,202.99,7.56]
[1757011734497,4.4326,203.0,202.99,9.51710098]
[1757011734699,4.4323,203.02,202.99,1.95710098]
[1757011734900,4.4323,203.02,203.01,9.51710098]
[1757011736901,4.4323,203.02,203.01,7.56]
[1757011739099,4.4318,203.04,203.01,7.56]
[1757011739397,1.95710098,203.09,203.03,7.56]
[1757011740492,4.4316,203.05,203.03,7.56]
[1757011740897,3.86,203.05,202.99,1.95710098]
[1757011741300,5.81710098,203.05,202.98,7.56]
[1757011741800,4.4327,203.0,202.97,1.95710098]
[1757011741998,4.4327,203.0,202.98,7.56]
[1757011742201,4.4327,203.0,202.97,6.08093209]
[1757011742401,4.4327,203.0,202.98,7.56]
[1757011742804,4.4322,203.02,202.99,1.95710098]
[1757011743207,4.4322,203.02,203.0,7.56]
[1757011743502,4.4322,203.02,202.99,1.95710098]
[1757011743902,4.4322,203.02,203.0,7.56]
[1757011745200,4.4326,203.0,202.99,1.95710098]
[1757011745400,4.4326,203.0,202.99,9.51710098]
[1757011746904,4.4323,203.02,203.0,7.56]
[1757011748605,13.61525275,203.26,203.01,1.95710098]
[1757011748606,3.86,203.12,203.01,1.95710098]
[1757011748806,3.86,203.12,203.05,1.95710098]
[1757011751008,3.86,203.16,203.11,1.95710098]
[1757011751208,5.81710098,203.19,203.13,1.95710098]
[1757011751403,3.86,203.19,203.13,1.95710098]
[1757011751814,70.84170098,203.2,203.08,1.95710098]
[1757011751815,1.95710098,203.14,203.08,1.95710098]
[1757011752121,1.95710098,203.1,203.04,1.95710098]
[1757011752309,3.86,203.09,203.03,7.56]
[1757011752913,8.2912,203.07,203.03,7.56]
[1757011753217,8.2912,203.07,203.0,5.30945838]
[1757011753218,1.95710098,203.06,203.0,11.68383111]
[1757011753418,1.95710098,203.06,203.0,4.12383111]
[1757011753720,70.86550098,203.13,203.05,1.95710098]
[1757011753918,70.86550098,203.13,203.07,1.95710098]
[1757011754815,4.4307,203.09,203.07,1.95710098]
[1757011755420,4.4307,203.09,203.06,7.56]
[1757011755617,4.4307,203.09,203.05,1.95710098]
[1757011755920,4.4307,203.09,203.06,7.56]
[1757011756617,4.4307,203.09,203.07,1.95710098]
[1757011756921,74.33356723,203.19,203.08,4.12383111]
[1757011756922,3.86,203.19,203.08,4.12383111]
[1757011757120,3.86,203.19,203.13,1.95710098]
[1757011757821,68.8735,203.23,203.17,1.95710098]
[1757011758014,3.91,203.22,203.17,1.95710098]
[1757011758214,68.8627,203.27,203.08,7.97909506]
[1757011758215,72.7633,203.29,203.21,1.95710098]
[1757011758415,72.7633,203.29,203.23,1.95710098]
[1757011758624,68.8533,203.29,203.23,1.95710098]
[1757011758819,68.8546,203.29,203.25,7.67]
[1757011759014,68.8546,203.29,203.19,1.95710098]
[1757011759015,68.8696,203.25,203.19,1.95710098]
[1757011759214,4.4275,203.24,203.2,7.67]
[1757011759420,68.85,203.3,203.24,7.67]
[1757011759718,3.86,203.29,203.25,1.95710098]
[1757011759919,4.4268,203.27,203.25,1.95710098]
[1757011760114,68.8406,203.33,203.26,7.67]
[1757011760315,68.8571,203.28,203.24,1.95710098]
[1757011760522,3.86,203.24,203.19,1.95710098]
[1757011760822,3.86,203.23,203.19,1.95710098]
[1757011761217,3.86,203.23,203.17,7.67]
[1757011761416,3.86,203.23,203.18,1.95710098]
[1757011761823,4.4282,203.21,203.18,1.95710098]
[1757011762123,3.86,203.23,203.18,1.95710098]
[1757011762719,4.4284,203.2,203.18,1.95710098]
[1757011762925,3.86,203.23,203.18,9.62710098]
[1757011763127,1.95710098,203.23,203.19,7.67]
[1757011763426,3.86,203.23,203.19,7.67]
[1757011763922,4.4278,203.22,203.19,7.67]
[1757011764323,68.8626,203.27,203.14,7.67]
[1757011764324,72.7226,203.27,203.14,7.67]
[1757011764916,4.4275,203.24,203.16,4.88336181]
[1757011765120,4.4275,203.24,203.17,7.67]
[1757011765522,4.4277,203.23,203.17,7.67]
[1757011765825,68.8635,203.26,203.17,7.67]
[1757011766421,4.4279,203.22,203.15,7.67]
[1757011769929,4.4273,203.24,203.17,4.88336181]
[1757011770229,0.03476023,203.21,203.18,7.67]
[1757011770426,0.03476023,203.21,203.2,12.55336181]
[1757011770624,4.4264,203.29,203.21,7.67]
[1757011771027,4.4264,203.29,203.21,12.55336181]
[1757011771326,4.4264,203.29,203.21,4.88336181]
[1757011771532,4.4264,203.29,203.22,7.67]
[1757011771724,4.4264,203.29,203.23,0.03715269]
[1757011772126,4.4264,203.29,203.24,7.67]
[1757011772327,4.4266,203.28,203.24,7.67]
[1757011773034,72.6952,203.35,203.24,7.67]
[1757011773232,3.86,203.35,203.24,7.67]
[1757011773730,3.86,203.35,203.27,0.03208832]
[1757011774425,4.4256,203.32,203.28,7.67]
[1757011774629,4.4256,203.32,203.27,0.03208832]
[1757011774828,4.4256,203.32,203.28,7.67]
[1757011775131,3.86,203.38,203.28,7.67]
[1757011775523,3.86,203.42,203.31,7.67]
[1757011775729,3.86,203.42,203.31,7.70356876]
[1757011777430,3.86,203.42,203.33,7.67]
[1757011778031,3.86,203.42,203.35,0.0321123]
[1757011785630,385.9977,203.46,203.35,0.0321123]
[1757011785631,72.6577,203.46,203.35,7.7021123]
[1757011785836,3.86,203.46,203.38,10.71695374]
[1757011786433,3.86,203.46,203.4,0.03753451]
[1757011801247,52.05,203.52,203.41,7.6]
[1757011801444,3.89,203.52,203.41,7.6]
[1757011801946,3.89,203.52,203.44,0.0315363]
[1757011804743,3.89,203.52,203.44,7.6315363]
[1757011806243,11.8085573,203.54,203.44,0.0315363]
[1757011808546,3.89,203.54,203.44,0.0315363]
[1757011809548,3.04528417,203.5,203.44,0.0315363]
[1757011810346,3.89,203.51,203.44,0.0315363]
[1757011811455,3.04528417,203.53,203.45,7.6]
[1757011811655,3.89,203.55,203.45,7.6]
[1757011812152,3.89,203.55,203.48,0.03611388]
[1757011812356,3.89,203.55,203.48,7.63611388]
[1757011813956,6.93528417,203.55,203.48,7.63611388]
[1757011814154,6.93528417,203.55,203.48,0.03611388]
[1757011814952,3.89,203.55,203.48,0.03611388]
[1757011815157,3.89,203.53,203.48,0.03611388]
[1757011815349,3.89,203.5,203.48,0.03611388]
[1757011816049,3.04528417,203.51,203.48,0.03611388]
[1757011816249,3.89,203.5,203.48,0.03611388]
[1757011816761,3.04528417,203.51,203.48,0.03611388]
[1757011817254,3.89,203.5,203.48,0.03611388]
[1757011817455,3.89,203.53,203.48,0.03611388]
[1757011817861,122.1,203.52,203.48,0.03611388]
[1757011818158,3.87,203.51,203.48,0.03611388]
[1757011818359,122.1,203.52,203.48,0.03611388]
[1757011818552,3.87,203.51,203.48,0.03611388]
[1757011818755,3.86,203.51,203.48,0.03611388]
[1757011819463,122.1,203.52,203.48,0.03611388]
[1757011819664,3.86,203.51,203.48,0.03611388]
[1757011820262,122.1,203.52,203.48,0.03611388]
[1757011820452,3.86,203.51,203.48,0.03611388]
[1757011820651,122.1,203.52,203.48,0.03611388]
[1757011820856,3.86,203.5,203.48,0.03611388]
[1757011821061,122.08,203.51,203.48,0.03611388]
[1757011821258,11.77847341,203.54,203.48,0.03611388]
[1757011821457,125.94,203.53,203.48,7.86611388]
[1757011821856,3.89262633,203.53,203.48,7.86611388]
[1757011822057,3.89262633,203.53,203.49,7.83]
[1757011824363,0.03262633,203.53,203.48,0.03611388]
[1757011824662,0.03262633,203.53,203.49,7.83]
[1757011825458,0.03262633,203.53,203.48,0.03611388]
[1757011826058,0.03262633,203.53,203.49,7.83]
[1757011826467,0.03262633,203.53,203.48,0.03611388]
[1757011826858,3.86,203.52,203.48,0.03611388]
[1757011827162,3.86,203.52,203.48,7.86611388]
[1757011829560,3.86,203.52,203.48,0.03611388]
[1757011830059,0.03262633,203.53,203.48,0.03611388]
[1757011830260,3.86,203.52,203.48,0.03611388]
[1757011830465,9.30496723,203.52,203.48,0.03611388]
[1757011830664,3.86,203.51,203.48,0.03611388]
[1757011830866,3.86,203.49,203.48,0.03611388]
[1757011831066,64.68,203.49,203.48,0.03611388]
[1757011831960,3.86,203.51,203.48,0.03611388]
[1757011832163,3.86,203.52,203.48,0.03611388]
[1757011833063,119.95262633,203.53,203.48,0.03611388]
[1757011833465,3.86,203.5,203.48,0.03611388]
[1757011835067,122.04,203.51,203.48,0.03611388]
[1757011835269,125.9,203.51,203.48,0.03611388]
[1757011836866,122.04,203.52,203.48,7.86611388]
[1757011837268,122.04,203.52,203.48,0.03611388]
[1757011837469,1.94878511,203.49,203.48,0.03611388]
[1757011840066,1.94878511,203.49,203.48,7.86611388]
[1757011840570,5.80878511,203.49,203.48,0.03611388]
[1757011842570,106.14878511,203.49,203.48,0.03611388]
[1757011843069,5.80878511,203.49,203.48,0.03611388]
[1757011844867,3.86,203.52,203.48,7.86611388]
[1757011845072,1.94878511,203.51,203.48,7.86611388]
[1757011845268,1.94878511,203.51,203.48,0.03611388]
[1757011845467,1.94878511,203.51,203.49,7.83]
[1757011846169,0.03262633,203.53,203.49,7.83]
[1757011846367,0.03262633,203.53,203.48,0.03611388]
[1757011846564,1.94878511,203.52,203.48,0.03611388]
[1757011846768,1.94878511,203.52,203.49,7.83]
[1757011848170,5.83878511,203.52,203.49,7.83]
[1757011848365,1.94878511,203.5,203.48,0.03611388]
[1757011848767,5.83878511,203.5,203.48,0.03611388]
[1757011849976,1.94878511,203.5,203.48,8.16611388]
[1757011850475,1.94878511,203.5,203.48,0.03611388]
[1757011851669,5.83878511,203.5,203.48,0.03611388]
[1757011853086,3.89,203.49,203.48,0.03611388]
[1757011856189,5.83878511,203.5,203.48,0.03611388]
[1757011856783,1.94878511,203.5,203.48,8.16611388]
[1757011857490,1.94878511,203.5,203.48,0.03611388]
[1757011858390,5.83878511,203.5,203.48,0.03611388]
[1757011862695,5.47759356,203.53,203.49,8.13]
[1757011862992,0.03262633,203.53,203.49,10.07878511]
[1757011863192,0.03262633,203.53,203.5,8.13]
[1757011863394,0.03262633,203.53,203.49,1.94878511]
[1757011863591,0.03262633,203.53,203.5,8.13]
[1757011864192,0.03262633,203.53,203.49,1.94878511]
[1757011864892,0.03262633,203.53,203.48,0.03611388]
[1757011865087,1.94878511,203.52,203.48,0.03611388]
[1757011865288,3.89,203.51,203.48,0.03611388]
[1757011865884,1.94878511,203.5,203.48,0.03611388]
[1757011866093,5.83878511,203.5,203.48,0.03611388]
[1757011867290,0.03262633,203.53,203.49,8.13]
[1757011867489,3.92262633,203.53,203.49,8.13]
[1757011867694,1.98141144,203.53,203.48,0.03611388]
[1757011867993,3.89,203.52,203.48,0.03611388]
[1757011868394,3.89,203.52,203.48,8.16611388]
[1757011869389,0.03262633,203.53,203.49,8.13]
[1757011869694,3.89,203.52,203.48,8.16611388]
[1757011870192,3.89,203.52,203.48,0.03611388]
[1757011870390,0.03262633,203.53,203.49,8.13]
[1757011870592,0.03262633,203.53,203.48,1.98489899]
[1757011871391,0.03262633,203.53,203.49,8.13]
[1757011871794,0.03262633,203.53,203.48,1.98489899]
[1757011873191,0.03262633,203.53,203.49,8.13]
[1757011873595,0.03262633,203.53,203.48,1.98489899]
[1757011873796,3.92262633,203.53,203.49,8.13]
[1757011875801,0.03262633,203.53,203.49,8.13]
[1757011876700,0.03262633,203.53,203.48,1.98489899]
[1757011876905,0.03262633,203.53,203.49,8.13]
[1757011877303,0.03262633,203.53,203.48,1.98489899]
[1757011877495,3.92262633,203.53,203.49,8.13]
[1757011877699,3.86,203.52,203.49,8.13]
[1757011878104,1.98141144,203.53,203.49,8.13]
[1757011878307,3.86,203.52,203.49,8.13]
[1757011878604,3.86,203.5,203.48,0.03611388]
[1757011879203,1.94878511,203.51,203.48,0.03611388]
[1757011879999,5.80878511,203.51,203.48,0.03611388]
[1757011880306,5.80878511,203.49,203.48,0.03611388]
[1757011880705,0.03262633,203.53,203.48,0.03611388]
[1757011880899,1.94878511,203.5,203.48,0.03611388]
[1757011881701,5.80878511,203.5,203.48,0.03611388]
[1757011881903,3.86,203.49,203.48,0.03611388]
[1757011883509,5.80878511,203.49,203.48,0.03611388]
[1757011895420,3.86,203.49,203.48,0.03611388]
[1757011896213,3.04534425,203.5,203.4,7.83]
[1757011896418,6.90534425,203.47,203.4,7.83]
[1757011897516,0.03580866,203.46,203.4,7.83]
[1757011898114,3.86,203.43,203.39,15.7979]
[1757011898311,3.04534425,203.44,203.39,7.9679]
[1757011898612,3.86,203.4,203.39,7.9679]
[1757011899321,3.89450285,203.42,203.39,7.9679]
[1757011899717,0.03450285,203.42,203.39,7.9679]
[1757011899917,3.86,203.41,203.39,7.9679]
[1757011900120,0.03450285,203.42,203.39,7.9679]
[1757011900321,3.86,203.41,203.39,7.9679]
[1757011901021,6.90534425,203.4,203.39,7.9679]
[1757011902322,3.04534425,203.4,203.39,7.9679]
[1757011902518,0.03450285,203.42,203.39,15.7979]
[1757011903223,3.89450285,203.42,203.39,15.7979]
[1757011907029,0.03450285,203.42,203.39,7.9679]
[1757011907321,3.86,203.39,203.35,7.83]
[1757011907526,3.04534425,203.37,203.26,7.83]
[1757011908127,0.03193067,203.34,203.26,7.83]
[1757011909131,0.03193067,203.34,203.27,7.46]
[1757011909430,3.04534425,203.4,203.29,3.04534425]
[1757011909722,3.04534425,203.4,203.3,7.46]
[1757011910623,3.04534425,203.4,203.33,7.49625558]
[1757011910827,3.91,203.39,203.33,7.49625558]
[1757011914726,3.04534425,203.4,203.33,7.49625558]
[1757011919836,3.04534425,203.43,203.33,7.49625558]
[1757011920129,3.04534425,203.43,203.33,7.46]
[1757011920330,3.04534425,203.43,203.36,0.03707329]
[1757011920536,3.04534425,203.43,203.37,7.46]
[1757011921237,6.95534425,203.46,203.37,7.46]
[1757011922138,3.91,203.46,203.37,7.46]
[1757011926535,3.91,203.4,203.36,0.03707329]
[1757011926736,3.91,203.4,203.36,7.49707329]
[1757011927039,3.91,203.4,203.36,7.49716304]
[1757011927535,3.04534425,203.41,203.36,7.49716304]
[1757011927740,3.91,203.37,203.36,0.03716304]
[1757011930634,3.04534425,203.38,203.36,0.03716304]
[1757011930834,3.04534425,203.41,203.36,7.49716304]
[1757011931033,3.91,203.4,203.36,0.03716304]
[1757011931235,3.91,203.4,203.36,7.49716304]
[1757011931445,3.91,203.4,203.37,7.46]
[1757011932045,3.04534425,203.41,203.36,0.03716304]
[1757011932545,3.91,203.4,203.36,0.03716304]
[1757011932751,3.04534425,203.41,203.36,0.03716304]
[1757011932951,3.91,203.4,203.36,0.03716304]
[1757011933149,3.04534425,203.41,203.37,7.46]
[1757011933351,6.95534425,203.41,203.37,7.46]
[1757011933552,3.04534425,203.41,203.36,0.03716304]
[1757011933947,3.91,203.4,203.36,0.03716304]
[1757011934148,3.04534425,203.38,203.36,0.03716304]
[1757011934554,6.95534425,203.38,203.36,0.03716304]
[1757011935955,3.91,203.37,203.36,0.03716304]
[1757011936449,3.04534425,203.39,203.36,0.03716304]
[1757011936757,6.95534425,203.39,203.36,0.03716304]
[1757011937544,3.04534425,203.39,203.36,0.03716304]
[1757011937747,3.9,203.38,203.36,0.03716304]
[1757011937946,3.04534425,203.39,203.36,0.03716304]
[1757011938355,3.04534425,203.39,203.28,8.11]
[1757011938549,3.04534425,203.33,203.26,8.11]
[1757011939557,0.03632763,203.32,203.26,8.11]
[1757011940058,3.93632763,203.32,203.26,8.11]
[1757011940252,6.94534425,203.3,203.26,8.11]
[1757011940450,6.94534425,203.3,203.22,8.11]
[1757011940653,3.04534425,203.3,203.22,8.11]
[1757011941052,0.03291419,203.28,203.22,8.11]
[1757011941253,0.03291419,203.28,203.22,12.22795073]
[1757011941452,0.03291419,203.28,203.22,8.11]
[1757011942954,6.94534425,203.27,203.22,8.11]
[1757011943158,3.9,203.26,203.22,8.11]
[1757011943352,6.94534425,203.27,203.17,8.11]
[1757011944365,3.04534425,203.24,203.17,8.11]
[1757011945059,6.94534425,203.24,203.17,8.11]
[1757011945950,3.04534425,203.21,203.17,8.11]
[1757011946150,3.04534425,203.21,203.12,8.11]
[1757011946762,0.03284925,203.19,203.12,8.11]
[1757011950562,0.03284925,203.19,203.12,3.04534425]
[1757011950762,0.03284925,203.19,203.13,8.11]
[1757011952062,0.03284925,203.19,203.15,3.04534425]
[1757011952264,0.03284925,203.19,203.16,8.11]
[1757011954763,0.03284925,203.19,203.15,3.04534425]
[1757011955368,0.03284925,203.19,203.16,8.11]
[1757011955865,0.03284925,203.19,203.15,3.04534425]
[1757011956464,0.03284925,203.19,203.16,8.11]
[1757011956661,0.03284925,203.19,203.15,3.04534425]
[1757011956862,0.03284925,203.19,203.16,8.11]
[1757011957068,0.03284925,203.19,203.15,3.04534425]
[1757011957270,0.03284925,203.19,203.16,8.11]
[1757011957470,0.03284925,203.19,203.18,10.0634825]
[1757011958861,0.03284925,203.19,203.18,8.11]
[1757011961271,0.03284925,203.19,203.13,10.0634825]
[1757011961272,1.98633175,203.19,203.13,10.0634825]
[1757011961773,1.9534825,203.19,203.13,10.0634825]
[1757011963170,3.9,203.22,203.13,8.11]
[1757011963765,1.9534825,203.19,203.13,8.11]
[1757011965173,1.9534825,203.17,203.13,8.11]
[1757011965376,5.8534825,203.17,203.13,8.11]
[1757011966673,3.9,203.16,203.13,8.11]
[1757011966874,3.9,203.16,203.09,1.9534825]
[1757011967074,1.9534825,203.15,203.09,10.0634825]
[1757011967269,1.9534825,203.15,203.09,8.11]
[1757011967475,0.03303621,203.14,203.07,10.0634825]
[1757011969171,1.9534825,203.13,203.07,10.0634825]
[1757011969376,0.03303621,203.14,203.11,7.6]
[1757011969579,0.03303621,203.14,203.1,1.9534825]
[1757011969878,1.9534825,203.17,203.11,7.6]
[1757011970375,3.89,203.18,203.12,1.9534825]
[1757011970780,0.03291433,203.17,203.12,1.9534825]
[1757011970978,0.03291433,203.17,203.13,7.6]
[1757011971779,3.89,203.16,203.13,7.6]
[1757011972676,3.89,203.16,203.09,1.9534825]
[1757011972886,3.89,203.16,203.1,7.6]
[1757011975084,1.9534825,203.15,203.1,7.6]
[1757011975294,1.9534825,203.15,203.09,9.5534825]
[1757011975983,1.9534825,203.16,203.09,9.5534825]
[1757011980179,1.9534825,203.16,203.1,7.6]
[1757011980375,0.03291433,203.17,203.13,1.9534825]
[1757011980580,1.9534825,203.2,203.13,7.6]
[1757011980884,1.9534825,203.18,203.12,9.5534825]
[1757011981385,5.8434825,203.16,203.12,7.6]
[1757011981683,1.9534825,203.14,203.12,7.6]
[1757011982081,3.89,203.15,203.12,7.6]
[1757011984185,3.89,203.15,203.08,9.5534825]
[1757011984685,1.9534825,203.2,203.15,7.6]
[1757011985081,3.89,203.21,203.14,1.9534825]
[1757011985280,3.89,203.21,203.15,7.6]
[1757011985681,1.98571577,203.2,203.14,9.5534825]
[1757011986784,1.98571577,203.2,203.14,7.6]
[1757011987087,1.98571577,203.2,203.14,9.5534825]
[1757011987589,1.98571577,203.2,203.14,7.6]
[1757011987784,1.98571577,203.2,203.14,9.5534825]
[1757011992587,3.89,203.15,203.11,7.6]
[1757011992788,5.8434825,203.14,203.11,7.6]
[1757011993684,1.9534825,203.12,203.06,7.6]
[1757011994680,1.9534825,203.14,203.08,7.6]
[1757011994881,1.98521524,203.15,203.08,7.6]
[1757011995087,1.9534825,203.15,203.08,7.6]
[1757011995293,1.9534825,203.15,203.08,9.5534825]
[1757011995486,0.03183644,203.14,203.1,1.9534825]
[1757011995886,0.03183644,203.14,203.11,7.6]
[1757011996087,0.03183644,203.14,203.1,1.9534825]
[1757011996287,0.03183644,203.14,203.11,7.6]
[1757011996485,0.03183644,203.14,203.1,1.9534825]
[1757011997189,0.03183644,203.14,203.11,7.6]
[1757011997487,1.98531894,203.14,203.07,7.6]
[1757011997691,1.98531894,203.14,203.06,9.3534825]
[1757011997692,1.9534825,203.12,203.06,9.3534825]
[1757011998398,1.9534825,203.1,203.06,7.4]
[1757011998693,1.9534825,203.1,203.03,6.08333358]
[1757011998694,1.9534825,203.1,203.04,7.4]
[1757011999299,0.03271787,203.09,203.03,1.9534825]
[1757011999798,3.92,203.2,203.09,7.4]
[1757012000096,3.95,203.14,203.09,7.4]
[1757012000698,5.9034825,203.13,203.09,7.4]
[1757012000892,3.95,203.18,203.09,1.9534825]
[1757012001088,1.9534825,203.16,203.12,7.4]
[1757012001492,1.9534825,203.16,203.11,1.98579874]
[1757012001697,1.9534825,203.16,203.12,7.4]
[1757012004689,1.9534825,203.16,203.11,0.03231624]
[1757012004895,1.9534825,203.17,203.12,7.4]
[1757012005201,1.9534825,203.17,203.11,0.03231624]
[1757012005501,1.9534825,203.17,203.12,7.4]
[1757012005697,1.9534825,203.17,203.11,0.03231624]
[1757012005900,1.9534825,203.17,203.12,7.4]
[1757012006099,1.9534825,203.17,203.11,0.03231624]
[1757012006902,1.9534825,203.17,203.12,7.4]
[1757012007105,1.9534825,203.17,203.11,1.98579874]
[1757012007899,1.9534825,203.19,203.12,7.4]
[1757012008099,1.9534825,203.19,203.14,7.4]
[1757012008402,1.9534825,203.19,203.14,0.03409526]
[1757012008997,1.9534825,203.19,203.15,7.4]
[1757012010293,3.95,203.21,203.15,9.3534825]
[1757012010696,5.9034825,203.18,203.15,7.4]
[1757012010908,5.9034825,203.18,203.14,0.03409526]
[1757012011903,3.95,203.18,203.14,7.43409526]
[1757012012103,1.9534825,203.17,203.14,7.43409526]
[1757012013414,5.9034825,203.17,203.14,7.43409526]
[1757012013605,56.2,203.23,203.15,7.4]
[1757012013606,1.9534825,203.18,203.15,7.4]
[1757012013804,5.9034825,203.18,203.15,7.4]
[1757012014010,5.9034825,203.18,203.14,0.03409526]
[1757012014211,3.95,203.17,203.14,0.03409526]
[1757012014906,1.9534825,203.16,203.14,0.03409526]
[1757012015714,5.9034825,203.16,203.14,0.03409526]
[1757012015914,3.95,203.15,203.14,0.03409526]
[1757012017803,5.44496723,203.22,203.14,0.03409526]
[1757012018007,3.95,203.23,203.15,7.4]
[1757012020211,3.05535517,203.2,203.14,0.03409526]
[1757012020410,3.95,203.19,203.14,0.03409526]
[1757012020611,3.05535517,203.2,203.14,0.03409526]
[1757012020813,3.95,203.19,203.14,0.03409526]
[1757012021017,3.05535517,203.2,203.14,0.03409526]
[1757012021616,3.95,203.19,203.14,0.03409526]
[1757012021821,3.05535517,203.2,203.14,0.03409526]
[1757012023115,3.95,203.19,203.14,0.03409526]
[1757012023618,3.05535517,203.2,203.14,0.03409526]
[1757012023816,3.95,203.19,203.14,0.03409526]
[1757012024018,3.05535517,203.2,203.14,0.03409526]
[1757012024222,3.95,203.19,203.14,0.03409526]
[1757012024420,3.05535517,203.2,203.14,0.03409526]
[1757012024914,3.95,203.22,203.14,7.43409526]
[1757012025217,41.01535517,203.21,203.14,7.43409526]
[1757012025919,3.95,203.2,203.14,0.03409526]
[1757012027215,3.05535517,203.21,203.15,7.4]
[1757012027416,3.95,203.19,203.14,0.03409526]
[1757012027612,41.05,203.2,203.14,0.03409526]
[1757012027817,69.74,203.19,203.14,0.03409526]
[1757012028017,3.97,203.18,203.14,0.03409526]
[1757012028915,3.97,203.18,203.14,7.97409526]
[1757012030116,3.97,203.17,203.14,0.03409526]
[1757012030521,3.05535517,203.18,203.14,0.03409526]
[1757012030820,3.97,203.17,203.14,0.03409526]
[1757012031217,3.05535517,203.18,203.14,0.03409526]
[1757012032021,3.97,203.17,203.14,0.03409526]
[1757012032222,3.97,203.17,203.14,7.97409526]
[1757012033519,7.02535517,203.19,203.14,7.97409526]
[1757012033822,3.97,203.18,203.14,7.97409526]
[1757012034017,99.65535517,203.19,203.14,7.97409526]
[1757012034218,3.97,203.18,203.14,0.03409526]
[1757012034425,3.97,203.18,203.15,7.94]
[1757012038322,3.97,203.17,203.14,0.03409526]
[1757012038518,3.05535517,203.18,203.09,7.94]
[1757012038519,7.02535517,203.15,203.09,7.94]
[1757012038823,109.43222622,203.18,203.05,7.94]
[1757012039122,109.4,203.18,203.05,7.94]
[1757012039524,7.02535517,203.19,203.05,12.08253509]
[1757012039729,31.88,203.18,203.07,3.05535517]
[1757012040029,7.02535517,203.19,203.08,7.94]
[1757012040425,0.03139363,203.15,203.08,7.94]
[1757012040621,0.03139363,203.15,203.11,7.94]
[1757012040824,24.38496723,203.26,203.14,7.94]
[1757012041025,18.94,203.26,203.14,7.94]
[1757012041226,4.0,203.25,203.14,7.94]
[1757012041426,125.7,203.25,203.14,7.94]